[Event "POR Cup Teams 2018-19"]
[Site "Maia"]
[Date "2019.07.13"]
[Round "4"]
[White "Hammes, Michael Florian"]
[Black "Fernandes, Antonio"]
[Result "1/2-1/2"]
[ECO "D43"]
[WhiteElo "2342"]
[BlackElo "2376"]
[Annotator "ChessBase"]
[PlyCount "50"]
[EventDate "2018.05.05"]
[EventType "team-tourn"]
[EventCountry "POR"]
[SourceTitle "playchess.com"]
[Source "ChessBase"]
[SourceQuality "1"]
[TimeControl "5400+30"]

1. d4 {[%emt 0:00:00]} Nf6 {[%emt 0:00:03]} 2. c4 {[%emt 0:00:01]} c6 {[%emt 0:01:13]} 3. Nf3 {[%emt 0:01:57]} d5 {[%emt 0:00:25]} 4. Nc3 {[%emt 0:01:43]} e6 {[%emt 0:02:54]} 5. Bg5 {[%emt 0:02:45]} Be7 {[%emt 0:03:11]} 6. e3 {[%emt 0:00:26]} Nbd7 {[%emt 0:00:16]} 7. cxd5 {[%emt 0:00:23]} exd5 {[%emt 0:00:58]} 8. Qc2 {[%emt 0:00:23]} Nf8 {[%emt 0:00:17]} 9. Bd3 {[%emt 0:06:08]} Ne6 {[%emt 0:01:26]} 10. Bxf6 {[%emt 0:01:33]} Bxf6 {[%emt 0:00:04]} 11. O-O {[%emt 0:00:14]} g6 {[%emt 0:01:56]} 12. b4 {[%emt 0:00:46]} a6 {[%emt 0:04:51]} 13. a4 {[%emt 0:01:20]} O-O {[%emt 0:00:26]} 14. Rab1 {[%emt 0:10:37]} Qd6 {[%emt 0:18:04]} 15. a5 {[%emt 0:07:39]} Bd7 {[%emt 0:11:23]} 16. Na4 {[%emt 0:05:31]} Rae8 {[%emt 0:01:53]} 17. Nc5 {[%emt 0:00:58]} Bc8 {[%emt 0:00:25]} 18. Nd2 {[%emt 0:03:34]} Bd8 {[%emt 0:07:31]} 19. Nxe6 {[%emt 0:03:43]} Bxe6 {[%emt 0:05:33]} 20. Nb3 {[%emt 0:00:49]} Re7 {[%emt 0:01:40]} 21. Qc5 {[%emt 0:05:14]} Bc7 {[%emt 0:00:45]} 22. Qxd6 {[%emt 0:02:21]} Bxd6 {[%emt 0:00:03]} 23. Nc5 {[%emt 0:00:10]} Rfe8 {[%emt 0:02:54]} 24. Rfe1 {[%emt 0:02:14]} Bc8 {[%emt 0:03:56]} 25. Rb2 {[%emt 0:02:52]} Kg7 {[%emt 0:00:17]} 1/2-1/2

[Event "POR Cup Teams 2018-19"]
[Site "Maia"]
[Date "2019.07.13"]
[Round "4"]
[White "Diogo, Vasco"]
[Black "Carneiro, Carlos"]
[Result "1-0"]
[ECO "B30"]
[WhiteElo "2204"]
[BlackElo "2135"]
[Annotator "ChessBase"]
[PlyCount "81"]
[EventDate "2018.05.05"]
[EventType "team-tourn"]
[EventCountry "POR"]
[SourceTitle "playchess.com"]
[Source "ChessBase"]
[SourceQuality "1"]
[TimeControl "5400+30"]

1. e4 {[%emt 0:00:00]} c5 {[%emt 0:00:00]} 2. Nf3 {[%emt 0:00:00]} Nc6 {[%emt 0:00:23]} 3. g3 g6 {[%emt 0:00:22]} 4. Bg2 {[%emt 0:01:38]} Bg7 {[%emt 0:00:07]} 5. O-O {[%emt 0:00:10]} d6 {[%emt 0:01:01]} 6. c3 {[%emt 0:02:21]} e6 {[%emt 0:07:20]} 7. d4 {[%emt 0:02:37]} cxd4 {[%emt 0:00:55]} 8. cxd4 {[%emt 0:00:06]} Nge7 {[%emt 0:00:09]} 9. Nc3 {[%emt 0:05:00]} d5 {[%emt 0:03:34]} 10. e5 {[%emt 0:02:46]} O-O {[%emt 0:05:45]} 11. Bf4 {[%emt 0:02:51]} h6 {[%emt 0:01:04]} 12. h4 {[%emt 0:01:06]} Nf5 {[%emt 0:00:07]} 13. Qd2 {[%emt 0:07:07]} Kh7 {[%emt 0:01:47]} 14. Rfe1 {[%emt 0:07:27]} b5 {[%emt 0:16:30]} 15. Rad1 {[%emt 0:11:43]} Rb8 {[%emt 0:02:45]} 16. Bf1 {[%emt 0:03:17]} a6 {[%emt 0:06:06]} 17. Kg2 {[%emt 0:03:53]} f6 {[%emt 0:16:25]} 18. exf6 {[%emt 0:01:13]} Qxf6 {[%emt 0:01:46]} 19. Bxb8 {[%emt 0:03:27]} Nxb8 {[%emt 0:00:22]} 20. Ne5 {[%emt 0:03:03]} Nd7 {[%emt 0:01:30]} 21. f4 {[%emt 0:07:06]} Nxe5 {[%emt 0:14:27]} 22. dxe5 {[%emt 0:02:16]} Qe7 {[%emt 0:00:15]} 23. Ne2 {[%emt 0:02:14]} d4 {[%emt 0:00:32]} 24. Nxd4 {[%emt 0:02:49]} Rd8 {[%emt 0:07:51]} 25. Qf2 {[%emt 0:01:15]} Bb7+ {[%emt 0:05:09]} 26. Kg1 {[%emt 0:00:52]} Rc8 {[%emt 0:04:30]} 27. Bg2 {[%emt 0:01:20]} Bf8 {[%emt 0:00:31]} 28. Nxf5 {[%emt 0:05:18]} gxf5 {[%emt 0:00:05]} 29. Re2 {[%emt 0:00:39]} Qf7 {[%emt 0:01:11]} 30. Kh2 {[%emt 0:03:09]} Bc5 {[%emt 0:00:51]} 31. Qf1 {[%emt 0:00:02]} Rg8 {[%emt 0:00:37]} 32. Bxb7 {[%emt 0:01:27]} Qxb7 {[%emt 0:00:22]} 33. Red2 {[%emt 0:00:54]} Rg7 {[%emt 0:00:08]} 34. Qg2 {[%emt 0:00:26]} Qa7 {[%emt 0:00:11]} 35. Qf3 {[%emt 0:02:14]} Be3 {[%emt 0:00:58]} 36. Re2 {[%emt 0:01:08]} Bd4 {[%emt 0:00:20]} 37. Qc6 {[%emt 0:02:47]} Bf2 {[%emt 0:01:29]} 38. Rd3 {[%emt 0:01:11]} Bg1+ {[%emt 0:00:13]} 39. Kg2 {[%emt 0:02:18]} Re7 {[%emt 0:00:52]} 40. Red2 {[%emt 0:00:21]} Rg7 {[%emt 0:00:58]} 41. Rd7 {[%emt 0:01:32]} 1-0

[Event "POR Cup Teams 2018-19"]
[Site "Maia"]
[Date "2019.07.13"]
[Round "4"]
[White "Martins, Bruno Andre Leite"]
[Black "Figueiredo, Mario"]
[Result "1-0"]
[ECO "B05"]
[WhiteElo "2177"]
[BlackElo "1959"]
[Annotator "ChessBase"]
[PlyCount "68"]
[EventDate "2018.05.05"]
[EventType "team-tourn"]
[EventCountry "POR"]
[SourceTitle "playchess.com"]
[Source "ChessBase"]
[SourceQuality "1"]
[TimeControl "5400+30"]

1. e4 {[%emt 0:00:00]} Nf6 {[%emt 0:00:00]} 2. e5 {[%emt 0:00:00]} Nd5 {[%emt 0:00:00]} 3. d4 {[%emt 0:00:19]} d6 {[%emt 0:00:08]} 4. Nf3 {[%emt 0:00:15]} Bg4 {[%emt 0:04:26]} 5. Bc4 {[%emt 0:02:38]} e6 {[%emt 0:03:33]} 6. h3 {[%emt 0:04:43]} Bh5 {[%emt 0:07:37]} 7. Qe2 {[%emt 0:00:50]} Nb6 {[%emt 0:03:47]} 8. Bb5+ {[%emt 0:17:34]} c6 {[%emt 0:06:43]} 9. Bd3 {[%emt 0:00:56]} N8d7 {[%emt 0:08:49]} 10. exd6 {[%emt 0:20:10]} Bxd6 {[%emt 0:01:59]} 11. Nbd2 {[%emt 0:05:05]} Qc7 {[%emt 0:06:18]} 12. c4 {[%emt 0:09:52]} Be7 {[%emt 0:12:07]} 13. Ne4 {[%emt 0:10:31]} O-O-O {[%emt 0:11:19]} 14. Be3 {[%emt 0:15:00]} c5 {[%emt 0:06:57]} 15. g4 {[%emt 0:02:59]} Bg6 {[%emt 0:00:49]} 16. Rd1 {[%emt 0:04:04]} Rhe8 {[%emt 0:06:47]} 17. Nc3 {[%emt 0:02:03]} Bxd3 {[%emt 0:01:17]} 18. Qxd3 {[%emt 0:00:41]} cxd4 {[%emt 0:03:24]} 19. Nb5 {[%emt 0:00:23]} Qb8 {[%emt 0:03:46]} 20. Qxd4 {[%emt 0:00:08]} Nc5 {[%emt 0:02:36]} 21. Qf4 {[%emt 0:01:35]} Rxd1+ {[%emt 0:02:02]} 22. Kxd1 {[%emt 0:00:09]} Rd8+ {[%emt 0:01:13]} 23. Ke2 {[%emt 0:00:37]} a6 {[%emt 0:01:41]} 24. Qxf7 {[%emt 0:00:41]} axb5 {[%emt 0:01:57]} 25. Qxe7 {[%emt 0:00:08]} Ncd7 {[%emt 0:02:10]} 26. Bxb6 {[%emt 0:00:46]} Nxb6 {[%emt 0:00:08]} 27. Qxe6+ {[%emt 0:00:32]} Nd7 {[%emt 0:00:41]} 28. cxb5 {[%emt 0:00:16]} Qa7 {[%emt 0:00:47]} 29. Rc1+ {[%emt 0:00:46]} Kb8 {[%emt 0:00:01]} 30. Qd6+ {[%emt 0:00:23]} Ka8 {[%emt 0:00:11]} 31. Rc3 {[%emt 0:00:32]} Re8+ {[%emt 0:00:36]} 32. Kf1 {[%emt 0:00:14]} Nb6 {[%emt 0:00:35]} 33. Ra3 {[%emt 0:00:25]} Na4 {[%emt 0:00:07]} 34. Qf4 {[%emt 0:00:41]} Rh8 1-0

[Event "POR Cup Teams 2018-19"]
[Site "Maia"]
[Date "2019.07.13"]
[Round "4"]
[White "Reis, Luis Sousa"]
[Black "Taboas Rodriguez, Daniel"]
[Result "0-1"]
[ECO "E76"]
[WhiteElo "2156"]
[BlackElo "2348"]
[Annotator "ChessBase"]
[PlyCount "70"]
[EventDate "2018.05.05"]
[EventType "team-tourn"]
[EventCountry "POR"]
[SourceTitle "playchess.com"]
[Source "ChessBase"]
[SourceQuality "1"]
[TimeControl "5400+30"]

1. d4 {[%emt 0:05:03]} Nf6 {[%emt 0:00:00]} 2. c4 {[%emt 0:00:56]} g6 {[%emt 0:00:00]} 3. Nc3 {[%emt 0:00:44]} Bg7 {[%emt 0:00:00]} 4. e4 {[%emt 0:00:38]} d6 {[%emt 0:00:00]} 5. f4 {[%emt 0:00:59]} O-O {[%emt 0:00:00]} 6. Nf3 {[%emt 0:00:48]} Na6 {[%emt 0:00:01]} 7. Bd3 {[%emt 0:02:02]} e5 {[%emt 0:00:16]} 8. fxe5 {[%emt 0:02:23]} dxe5 {[%emt 0:00:03]} 9. d5 {[%emt 0:01:38]} Nc5 {[%emt 0:00:20]} 10. O-O {[%emt 0:04:43]} Nxd3 {[%emt 0:04:09]} 11. Qxd3 {[%emt 0:00:13]} Qe7 {[%emt 0:00:18]} 12. Bg5 {[%emt 0:21:52]} h6 {[%emt 0:00:29]} 13. Bxf6 {[%emt 0:00:11]} Bxf6 {[%emt 0:03:22]} 14. Qe3 {[%emt 0:00:38]} Bg7 {[%emt 0:05:41]} 15. c5 {[%emt 0:00:50]} f5 {[%emt 0:00:50]} 16. Rad1 {[%emt 0:09:46]} f4 {[%emt 0:09:26]} 17. Qf2 {[%emt 0:02:01]} Qf7 {[%emt 0:01:42]} 18. Rd2 {[%emt 0:04:09]} g5 {[%emt 0:00:58]} 19. Rfd1 {[%emt 0:00:39]} Bd7 {[%emt 0:03:47]} 20. b4 {[%emt 0:04:53]} a6 {[%emt 0:04:53]} 21. a4 {[%emt 0:07:30]} g4 {[%emt 0:13:10]} 22. Ne1 {[%emt 0:02:41]} Qg6 {[%emt 0:09:05]} 23. c6 {[%emt 0:07:01]} g3 {[%emt 0:05:51]} 24. Qc5 {[%emt 0:04:52]} bxc6 {[%emt 0:10:59]} 25. dxc6 {[%emt 0:01:48]} Bg4 {[%emt 0:00:20]} 26. Nd5 {[%emt 0:04:33]} Qh5 27. Nf3 {[%emt 0:04:56]} gxh2+ {[%emt 0:19:35]} 28. Kh1 {[%emt 0:00:09]} Bxf3 {[%emt 0:00:04]} 29. gxf3 {[%emt 0:00:07]} Qxf3+ {[%emt 0:00:02]} 30. Kxh2 {[%emt 0:00:11]} Qg3+ {[%emt 0:01:44]} 31. Kh1 {[%emt 0:00:06]} Qh3+ {[%emt 0:00:07]} 32. Kg1 {[%emt 0:00:26]} Rf7 {[%emt 0:00:44]} 33. Ne7+ {[%emt 0:03:11]} Kh7 {[%emt 0:00:24]} 34. Rd7 {[%emt 0:01:29]} Bf8 {[%emt 0:05:19]} 35. Qxe5 {[%emt 0:02:32]} Bxe7 {[%emt 0:00:33]} 0-1

[Event "POR Cup Teams 2018-19"]
[Site "Maia"]
[Date "2019.07.13"]
[Round "4"]
[White "Turta, Stelian"]
[Black "Dias, Paulo"]
[Result "0-1"]
[ECO "A41"]
[WhiteElo "1930"]
[BlackElo "2309"]
[Annotator "ChessBase"]
[PlyCount "118"]
[EventDate "2018.05.05"]
[EventType "team-tourn"]
[EventCountry "POR"]
[SourceTitle "playchess.com"]
[Source "ChessBase"]
[SourceQuality "1"]
[TimeControl "5400+30"]

1. d4 {[%emt 0:00:00]} d6 {[%emt 0:01:02]} 2. Bf4 {[%emt 0:00:49]} g6 {[%emt 0:02:12]} 3. h3 {[%emt 0:03:33]} Bg7 {[%emt 0:00:52]} 4. Nf3 {[%emt 0:00:16]} Nc6 {[%emt 0:04:30]} 5. c3 {[%emt 0:06:03]} e5 {[%emt 0:03:22]} 6. dxe5 {[%emt 0:00:29]} dxe5 {[%emt 0:04:23]} 7. Qxd8+ {[%emt 0:00:05]} Kxd8 {[%emt 0:00:12]} 8. Bg5+ {[%emt 0:01:16]} f6 {[%emt 0:04:32]} 9. Bd2 {[%emt 0:05:17]} e4 {[%emt 0:15:31]} 10. Nd4 {[%emt 0:00:45]} Nge7 {[%emt 0:01:34]} 11. e3 {[%emt 0:04:08]} f5 {[%emt 0:09:33]} 12. Bb5 {[%emt 0:02:17]} Ne5 {[%emt 0:02:37]} 13. Na3 {[%emt 0:01:49]} c5 {[%emt 0:01:07]} 14. Nb3 {[%emt 0:01:42]} b6 {[%emt 0:00:46]} 15. Be2 {[%emt 0:05:08]} Be6 {[%emt 0:04:35]} 16. Rd1 {[%emt 0:02:10]} a6 {[%emt 0:01:58]} 17. c4 {[%emt 0:06:24]} Kc7 {[%emt 0:03:28]} 18. Bc3 {[%emt 0:01:40]} N7c6 {[%emt 0:03:07]} 19. f4 {[%emt 0:01:33]} exf3 {[%emt 0:00:44]} 20. gxf3 {[%emt 0:00:16]} Rhg8 {[%emt 0:02:38]} 21. f4 {[%emt 0:00:28]} Nf7 {[%emt 0:01:29]} 22. Bxg7 {[%emt 0:00:20]} Rxg7 {[%emt 0:00:02]} 23. Bf3 {[%emt 0:00:01]} Nd6 {[%emt 0:01:40]} 24. Nd2 {[%emt 0:00:53]} Re8 {[%emt 0:02:14]} 25. Bxc6 {[%emt 0:00:07]} Kxc6 {[%emt 0:00:17]} 26. Nf3 {[%emt 0:00:15]} Nxc4 {[%emt 0:07:19]} 27. Nxc4 {[%emt 0:00:12]} Bxc4 {[%emt 0:00:06]} 28. Ne5+ {[%emt 0:00:18]} Rxe5 {[%emt 0:02:41]} 29. fxe5 {[%emt 0:00:12]} Bxa2 {[%emt 0:01:03]} 30. Rd6+ {[%emt 0:00:43]} Kb5 {[%emt 0:00:47]} 31. Kf2 {[%emt 0:01:32]} Re7 {[%emt 0:01:33]} 32. Ra1 {[%emt 0:01:18]} Bc4 {[%emt 0:00:50]} 33. h4 {[%emt 0:05:00]} Rxe5 {[%emt 0:00:39]} 34. h5 {[%emt 0:00:46]} f4 {[%emt 0:00:57]} 35. hxg6 {[%emt 0:02:46]} fxe3+ {[%emt 0:00:17]} 36. Kf3 {[%emt 0:00:29]} hxg6 {[%emt 0:00:21]} 37. Rxg6 {[%emt 0:00:36]} e2 {[%emt 0:00:23]} 38. Re1 {[%emt 0:00:51]} a5 {[%emt 0:02:26]} 39. Kf2 {[%emt 0:04:02]} a4 {[%emt 0:00:26]} 40. Rg4 {[%emt 0:02:26]} Kb4 {[%emt 0:00:49]} 41. Rc1 {[%emt 0:00:02]} b5 {[%emt 0:00:29]} 42. Rg3 {[%emt 0:00:25]} Rf5+ {[%emt 0:01:01]} 43. Rf3 {[%emt 0:00:37]} Rxf3+ {[%emt 0:00:22]} 44. Kxf3 {[%emt 0:00:01]} Kb3 {[%emt 0:00:16]} 45. Ke3 {[%emt 0:00:44]} Kxb2 {[%emt 0:00:16]} 46. Kd2 {[%emt 0:00:01]} a3 {[%emt 0:00:44]} 47. Rc2+ {[%emt 0:00:03]} Kb3 {[%emt 0:00:08]} 48. Rc3+ {[%emt 0:00:10]} Kb4 {[%emt 0:00:07]} 49. Rc1 {[%emt 0:00:17]} a2 {[%emt 0:00:10]} 50. Kc2 {[%emt 0:00:03]} Bb3+ {[%emt 0:00:59]} 51. Kd2 {[%emt 0:01:06]} Bd1 {[%emt 0:00:19]} 52. Ra1 {[%emt 0:03:33]} c4 {[%emt 0:00:21]} 53. Rxa2 {[%emt 0:00:09]} c3+ {[%emt 0:01:13]} 54. Ke1 {[%emt 0:00:23]} Kb3 {[%emt 0:01:03]} 55. Ra5 {[%emt 0:00:19]} b4 {[%emt 0:00:20]} 56. Rc5 {[%emt 0:00:23]} Kb2 {[%emt 0:00:29]} 57. Rc4 {[%emt 0:00:04]} b3 {[%emt 0:00:32]} 58. Rd4 {[%emt 0:02:26]} c2 {[%emt 0:00:29]} 59. Rd2 {[%emt 0:00:02]} Ka3 {[%emt 0:00:31]} 0-1